bitfinex-derivatives/quotes_ETHF0:USTF0_20210109
["timestamp","ask_amount","ask_price","bid_price","bid_amount"]
[1610179293204,53.88400081,1191.0,1189.2,4.00959]
[1610179293608,53.90526895,1191.1,1189.2,6.10879]
[1610179293804,109.9259496,1191.2,1189.7,4.00959]
[1610179294204,53.90140713,1191.1,1189.7,4.00959]
[1610179294403,55.74670713,1191.1,1189.7,4.00959]
[1610179294607,1.8453,1191.1,1189.7,4.00959]
[1610179294806,1.8453,1191.1,1189.2,2.0992]
[1610179295207,55.74232198,1191.1,1188.7,1.02550955]
[1610179295406,55.74232198,1191.1,1188.5,1.02577551]
[1610179295407,53.86330409,1190.9,1188.5,1.02577551]
[1610179295607,61.3719,1189.9,1188.5,1.02577551]
[1610179295808,61.3719,1189.9,1188.1,3.25698676]
[1610179295809,4.00959,1188.6,1188.1,3.25698676]
[1610179296007,4.00959,1188.6,1188.1,1.02598676]
[1610179296210,4.00959,1188.6,1188.0,1.02612454]
[1610179296409,4.00959,1188.6,1187.8,1.02632881]
[1610179296807,4.00959,1188.6,1187.7,1.02635097]
[1610179297208,4.00959,1188.6,1187.6,1.0263884]
[1610179297911,4.00959,1187.8,1187.5,1.02658726]
[1610179298312,4.00959,1187.8,1187.3,1.02663988]
[1610179299110,4.00959,1187.8,1187.2,1.02675973]
[1610179299512,4.00959,1187.8,1187.1,1.0268811]
[1610179299812,4.00959,1187.8,1187.0,1.28360137]
[1610179299813,4.00959,1187.4,1187.2,4.00959]
[1610179302817,1.7867,1187.5,1187.2,4.00959]
[1610179303921,1.7867,1187.5,1187.1,68.0816]
[1610179303922,1.7867,1187.5,1187.4,4.00959]
[1610179304621,1.7867,1187.5,1187.4,5.03626347]
[1610179305121,2.4272,1187.9,1187.4,5.03626347]
[1610179305322,4.00959,1188.3,1187.4,4.00959]
[1610179305922,4.00959,1188.0,1187.7,4.00959]
[1610179306127,4.00959,1188.0,1187.2,1.02675541]
[1610179306324,6.53649,1188.0,1187.2,1.02675541]
[1610179306926,6.53649,1188.0,1187.0,1.02686883]
[1610179307728,6.53649,1188.0,1186.9,1.02695013]
[1610179307925,4.00959,1187.4,1187.2,4.00959]
[1610179308126,5.62239,1187.4,1187.2,4.00959]
[1610179309427,5.62239,1187.4,1186.8,1.02704807]
[1610179309828,4.00959,1187.2,1187.1,4.00959]
[1610179310729,1.6128,1187.4,1187.1,4.00959]
[1610179311833,1.6128,1187.4,1187.3,4.00959]
[1610179312833,2.5269,1188.0,1187.3,4.00959]
[1610179313233,59.4602,1189.2,1187.3,4.00959]
[1610179313437,59.4602,1189.2,1187.4,1.0264551]
[1610179313634,59.4602,1189.2,1187.6,1.02638336]
[1610179313833,4.00959,1188.6,1188.3,4.00959]
[1610179314037,5.86559,1188.6,1188.3,4.00959]
[1610179314434,5.86559,1188.6,1187.8,68.945]
[1610179315337,5.86559,1188.6,1187.6,1.02636985]
[1610179315937,4.00959,1187.9,1187.6,4.00959]
[1610179316139,6.29849,1187.9,1187.6,4.00959]
[1610179316739,6.29849,1187.9,1187.2,1.02667697]
[1610179317241,6.29849,1187.9,1187.1,1.02674292]
[1610179317639,6.29849,1187.9,1187.0,60.51952679]
[1610179317839,4.00959,1187.5,1187.2,4.00959]
[1610179318039,6.32809,1187.5,1187.2,4.00959]
[1610179318840,6.32809,1187.5,1187.0,1.02690424]
[1610179319141,6.32809,1187.5,1186.9,1.02692139]
[1610179319441,6.32809,1187.5,1186.8,1.02693823]
[1610179319843,4.00959,1187.2,1186.9,4.00959]
[1610179320042,4.00959,1187.2,1187.0,1.283895]
[1610179321043,2.3185,1187.5,1187.0,1.283895]
[1610179321443,2.3185,1187.5,1186.9,4.00959]
[1610179321845,2.3185,1187.5,1187.4,4.00959]
[1610179322244,2.3185,1187.5,1186.9,1.02694431]
[1610179323244,1.7928,1187.5,1186.9,1.02694431]
[1610179323744,1.7928,1187.5,1186.8,1.02705958]
[1610179324145,1.7928,1187.5,1187.0,1.28395676]
[1610179325546,1.7928,1187.5,1186.5,1.02728122]
[1610179325947,4.00959,1186.8,1186.5,5.03687122]
[1610179326146,4.00959,1186.8,1186.5,4.00959]
[1610179326348,4.00959,1186.8,1186.4,1.02736643]
[1610179326547,4.00959,1186.8,1186.3,1.02755984]
[1610179326747,4.00959,1186.8,1186.1,1.02767932]
[1610179327047,4.00959,1186.8,1186.0,1.02771267]
[1610179327856,2.4743,1186.9,1186.1,4.00959]
[1610179328048,2.4743,1186.9,1185.9,1.02779926]
[1610179328449,2.4743,1186.9,1186.1,1.28503498]
[1610179329852,4.00959,1186.2,1186.1,1.28503498]
[1610179330053,6.10399,1186.2,1186.0,4.00959]
[1610179331654,2.0944,1186.2,1185.8,1.02788866]
[1610179331855,2.0944,1186.2,1186.1,4.00959]
[1610179332257,2.4743,1186.9,1186.1,5.03724355]
[1610179332458,2.4743,1186.9,1186.2,1.02754918]
[1610179332658,54.7432,1187.0,1186.2,1.02754918]
[1610179332856,54.7432,1187.0,1186.3,1.02753006]
[1610179333258,54.7432,1187.0,1186.2,1.02761198]
[1610179333657,57.1869,1187.0,1186.0,1.02782708]
[1610179333857,4.00959,1186.1,1185.9,1.02793923]
[1610179334258,4.00959,1186.1,1185.8,1.02802684]
[1610179334657,4.00959,1186.1,1185.7,5.03768656]
[1610179335058,4.00959,1186.1,1185.7,4.00959]
[1610179335259,4.00959,1186.1,1185.5,1.02817823]
[1610179335660,4.00959,1186.1,1185.4,1.02831243]
[1610179335859,4.00959,1185.5,1185.4,1.02831243]
[1610179336060,4.00959,1185.5,1185.3,5.03794771]
[1610179336261,4.00959,1185.5,1185.3,4.00959]
[1610179337061,1.7037,1185.8,1185.3,4.00959]
[1610179337864,4.00959,1185.4,1185.3,4.00959]
[1610179338062,4.00959,1185.4,1185.3,5.03799558]
[1610179338265,4.00959,1185.4,1185.3,1.02840558]
[1610179338462,58.9432,1185.3,1185.2,1.0284358]
[1610179338662,58.9432,1185.3,1184.9,3.16599917]
[1610179338663,58.9432,1185.3,1185.0,1.0285664]
[1610179339062,58.9432,1185.3,1184.8,1.02875076]
[1610179339464,58.9432,1185.3,1184.7,1.0287664]
[1610179339963,58.9432,1185.3,1184.6,1.02885795]
[1610179339964,4.00959,1184.8,1184.6,1.02885795]
[1610179340164,4.00959,1184.8,1184.5,1.02895125]
[1610179340763,63.65819,1184.8,1184.3,1.02908128]
[1610179341465,63.65819,1184.8,1184.2,1.02916028]
[1610179341867,4.00959,1184.3,1184.2,1.02916028]
[1610179342467,4.00959,1184.3,1184.1,5.03868856]
[1610179342869,4.00959,1184.3,1184.2,1.02913347]
[1610179343269,4.00959,1184.3,1184.0,1.02922585]
[1610179343468,2.2398,1184.6,1183.9,1.02928931]
[1610179343869,2.2398,1184.6,1184.5,4.00959]
[1610179345068,1.7461,1184.9,1184.5,4.00959]
[1610179345269,1.9119,1185.5,1184.5,4.00959]
[1610179345470,6.2127,1185.7,1184.5,4.00959]
[1610179345669,6.2127,1185.7,1184.5,5.03842128]
[1610179346069,4.00959,1185.0,1184.8,4.00959]
[1610179346369,5.93759,1185.0,1184.8,4.00959]
[1610179347171,1.928,1185.0,1184.8,4.00959]
[1610179348580,1.928,1185.0,1184.7,1.02876421]
[1610179348980,1.928,1185.0,1184.6,1.02887757]
[1610179349379,1.928,1185.0,1184.5,1.0289405]
[1610179349980,5.93759,1185.0,1184.8,4.00959]
[1610179350280,5.93759,1185.0,1184.6,1.02887949]
[1610179351080,1.928,1185.0,1184.6,1.02887949]
[1610179351380,6.1928,1185.7,1184.6,1.02887949]
[1610179351680,6.1928,1185.7,1184.7,1.0288042]
[1610179352080,4.00959,1185.2,1185.0,4.00959]
[1610179352280,6.15789,1185.2,1185.0,4.00959]
[1610179354280,6.15789,1185.2,1184.9,1.02865695]
[1610179354482,6.15789,1185.2,1184.8,1.02868791]
[1610179355382,6.15789,1185.2,1184.9,1.28613208]
[1610179355581,66.63579,1185.2,1184.9,1.28613208]
[1610179355982,4.00959,1185.0,1184.9,1.28613208]
[1610179356783,4.00959,1185.0,1184.2,5.03876414]
[1610179356984,4.00959,1185.0,1184.1,1.02922521]
[1610179357682,4.00959,1185.0,1184.0,1.02934041]
[1610179357983,4.00959,1184.2,1184.0,1.02934041]
[1610179358384,1.8297,1184.6,1184.0,1.02934041]
[1610179358583,1.8297,1184.6,1184.1,1.02927799]
[1610179358984,1.8297,1184.6,1184.2,1.02920067]
[1610179359484,1.8297,1184.6,1184.3,1.02912305]
[1610179359685,70.4593,1184.9,1184.3,1.02912305]
[1610179359885,2.1483,1185.2,1184.5,1.02900504]
[1610179360086,2.1483,1185.2,1184.6,4.00959]
[1610179360286,6.1727,1185.7,1184.6,4.00959]
[1610179360485,6.1727,1185.7,1184.6,5.03846724]
[1610179360888,6.1727,1185.7,1184.7,2.31491315]
[1610179361989,4.00959,1184.9,1184.7,1.28610919]
[1610179362187,4.00959,1184.9,1184.8,1.28617458]
[1610179362587,6.1727,1185.7,1184.8,1.28617458]
[1610179363088,6.1727,1185.7,1184.7,1.02888666]
[1610179363288,6.1727,1185.7,1184.6,5.0385244]
[1610179363691,6.1727,1185.7,1184.9,1.28629578]
[1610179364090,4.00959,1185.1,1184.9,1.28629578]
[1610179364490,5.61149,1185.1,1184.9,1.28629578]
[1610179366995,5.61149,1185.1,1184.7,1.28634734]
[1610179368096,4.00959,1184.9,1184.7,1.28634734]
[1610179372701,4.00959,1184.9,1184.5,1.28651196]
[1610179374004,4.00959,1184.6,1184.2,5.2962008]
[1610179374405,50.0333,1184.5,1184.2,5.2962008]
[1610179374606,50.0333,1184.5,1184.2,1.2866108]
[1610179375006,51.9059,1184.5,1184.2,1.2866108]
[1610179375407,51.9059,1184.5,1184.1,1.28674319]
[1610179376112,4.00959,1184.2,1184.1,1.28674319]
[1610179376509,61.85109,1184.2,1184.1,1.28674319]
[1610179376709,61.85109,1184.2,1183.7,1.28729049]
[1610179376908,64.43879,1184.2,1183.7,1.28729049]
[1610179377709,6.59729,1184.2,1183.7,1.28729049]
[1610179377909,2.5877,1184.2,1183.7,1.28729049]
[1610179378110,2.5877,1184.2,1184.1,4.00959]
[1610179379212,2.5877,1184.2,1183.8,1.02955672]
[1610179379812,2.5877,1184.2,1183.7,1.02956655]
[1610179380012,4.00959,1183.8,1183.7,1.02956655]
[1610179380411,4.00959,1183.8,1183.6,1.02965897]
[1610179380811,4.00959,1183.8,1183.5,6.98280332]
[1610179380812,4.00959,1183.8,1183.7,1.28713989]
[1610179382211,2.5877,1184.2,1183.7,1.28713989]
[1610179382412,1.8726,1184.5,1183.6,1.28716858]
[1610179382614,2.1939,1184.8,1183.6,55.77406858]
[1610179382813,1.6019,1185.1,1183.6,55.77406858]
[1610179383013,57.701,1185.6,1183.8,1.02948089]
[1610179383213,57.701,1185.6,1183.8,2.61688089]
[1610179383414,57.701,1185.6,1184.0,1.02941184]
[1610179383615,59.2994896,1186.4,1184.0,1.02941184]
[1610179383815,6.6102,1186.4,1184.1,67.90387447]
[1610179384017,4.00959,1186.0,1184.4,1.02916866]
[1610179384215,6.51649,1186.0,1184.4,1.02916866]
[1610179384418,6.51649,1186.0,1184.5,1.02910304]
[1610179384615,58.3038,1185.9,1184.5,2.77570304]
[1610179385016,58.3038,1185.9,1184.5,1.7466]
[1610179385817,58.3038,1185.9,1184.3,1.02919347]
[1610179386018,58.3038,1185.9,1184.8,4.00959]
[1610179387017,58.3038,1185.9,1184.4,1.28677881]
[1610179387617,6.2532,1185.8,1184.4,1.28677881]
[1610179387818,9.6582,1185.8,1184.4,1.28677881]
[1610179388019,4.00959,1184.5,1184.1,4.00959]
[1610179388219,4.00959,1184.5,1183.8,1.5874]
[1610179388420,4.00959,1184.5,1183.7,1.02961853]
[1610179388821,4.00959,1184.5,1183.5,2.71599419]
[1610179389420,2.4751,1184.6,1183.8,1.28729887]
[1610179390022,6.48469,1184.6,1184.5,4.00959]
[1610179390823,6.48469,1184.6,1183.8,1.28729887]
[1610179391023,6.48469,1184.6,1183.6,51.225412]
[1610179391426,6.48469,1184.6,1183.6,2.316912]
[1610179391625,6.48469,1184.6,1183.6,1.28719305]
[1610179392025,2.4751,1184.6,1183.9,4.00959]
[1610179392227,2.4751,1184.6,1183.6,1.28719305]
[1610179393228,55.5045,1184.7,1183.6,1.28719305]
[1610179393630,55.5045,1184.7,1183.5,1.28737707]
[1610179393830,57.7197,1184.7,1183.5,1.28737707]
[1610179394030,4.00959,1184.6,1183.7,4.00959]
[1610179394632,4.00959,1184.6,1183.7,5.03923894]
[1610179395032,4.00959,1184.6,1183.8,1.28708905]
[1610179396233,4.00959,1183.9,1183.8,1.28708905]
[1610179397736,4.00959,1183.9,1183.6,1.28745015]
[1610179398237,2.469,1184.1,1183.6,1.28745015]
[1610179400039,2.469,1184.1,1184.0,4.00959]
[1610179400238,2.469,1184.1,1183.6,1.28745015]
[1610179401539,2.2152,1184.7,1183.6,1.28745015]
[1610179401740,61.0096,1185.1,1183.6,1.28745015]
[1610179403341,61.0096,1185.1,1183.5,1.28741404]
[1610179403542,62.6559,1185.1,1183.5,1.28741404]
[1610179404145,62.6559,1185.1,1183.6,4.00959]
[1610179404746,92.6559,1185.1,1183.6,4.00959]
[1610179404946,37.9408,1185.1,1183.5,1.28741404]
[1610179405145,60.8546,1184.4,1183.5,1.28741404]
[1610179405345,62.5541,1184.4,1183.5,1.28741404]
[1610179406147,4.00959,1183.6,1183.5,1.28741404]
[1610179406347,4.00959,1183.6,1183.1,4.00959]
[1610179406547,6.55349,1183.6,1183.1,4.00959]
[1610179407549,2.5439,1183.6,1183.1,4.00959]
[1610179407950,2.5439,1183.6,1183.2,1.2880632]
[1610179408150,2.5439,1183.6,1183.5,4.00959]
[1610179409150,2.5439,1183.6,1183.5,5.29744672]
[1610179409551,1.6995,1184.4,1183.5,5.29744672]
[1610179410251,1.6995,1184.4,1183.9,4.00959]
[1610179410451,56.4583,1184.9,1183.9,4.00959]
[1610179412053,56.4583,1184.9,1183.2,1.03011748]
[1610179412253,4.00959,1184.2,1184.0,4.00959]
[1610179412453,6.23249,1184.2,1184.0,4.00959]
[1610179416560,2.2229,1184.2,1184.0,4.00959]
[1610179417160,2.2229,1184.2,1183.4,1.02998574]
[1610179417362,56.4583,1184.9,1183.3,1.02999672]
[1610179417562,48.0252,1184.5,1183.3,1.02999672]
[1610179417765,50.1925,1184.5,1183.2,1.03007032]
[1610179417964,50.1925,1184.5,1183.1,1.03014164]
[1610179418166,4.00959,1183.8,1183.7,4.00959]
[1610179418365,6.18229,1183.8,1183.7,4.00959]
[1610179418566,2.1727,1183.8,1183.7,4.00959]
[1610179420565,2.1727,1183.8,1183.7,5.29732396]
[1610179422269,6.18229,1183.8,1183.7,5.29732396]
[1610179423470,6.18229,1183.8,1183.7,4.00959]
[1610179424973,6.18229,1183.8,1183.7,5.29753251]
[1610179426172,6.18229,1183.8,1183.7,4.00959]
[1610179426373,2.1727,1183.8,1183.7,4.00959]
[1610179426573,2.3214,1183.8,1183.7,4.00959]
[1610179427575,2.3214,1183.8,1183.7,5.29695996]
[1610179427775,2.1673,1184.5,1184.1,68.0867]
[1610179427974,1.6463,1185.1,1184.1,68.0867]
[1610179428177,4.00959,1185.0,1184.9,4.00959]
[1610179428576,6.35379,1185.0,1184.9,4.00959]
[1610179430277,6.35379,1185.0,1184.1,69.4398]
[1610179431678,6.35379,1185.0,1184.2,1.28706958]
[1610179432279,4.00959,1184.8,1184.7,4.00959]
[1610179433683,2.3442,1185.0,1184.7,4.00959]
[1610179433880,2.5069,1186.0,1184.8,56.7826]
[1610179434082,6.0485,1186.1,1184.8,56.7826]
[1610179434283,4.00959,1185.5,1185.4,4.00959]
[1610179434482,5.70359,1185.5,1185.4,4.00959]
[1610179434682,5.70359,1185.5,1184.8,56.7826]
[1610179436186,1.694,1185.5,1185.2,4.00959]
[1610179436387,1.694,1185.5,1184.8,56.7826]
[1610179438090,1.694,1185.5,1184.2,66.42037865]
[1610179438291,4.00959,1185.0,1184.8,4.00959]
[1610179438690,4.00959,1185.0,1184.2,66.42037865]
[1610179438892,4.00959,1185.0,1184.2,65.3911]
[1610179440292,4.00959,1185.0,1184.9,4.00959]
[1610179440492,1.8995,1185.1,1184.9,4.00959]
[1610179442695,1.8801443,1185.1,1184.9,4.00959]
[1610179443499,1.694,1185.5,1184.9,4.00959]
[1610179443696,5.9783,1186.0,1184.9,4.00959]
[1610179444297,5.9783,1186.0,1185.2,4.00959]
[1610179445097,5.9783,1186.0,1184.7,54.2776]
[1610179445296,8.5021,1186.0,1184.7,54.2776]
[1610179445897,8.5021,1186.0,1184.1,1.02932181]
[1610179446098,70.533,1186.0,1184.1,1.02932181]
[1610179446298,70.533,1186.0,1184.9,4.00959]
[1610179447300,8.5021,1186.0,1184.9,4.00959]
[1610179450400,4.00959,1185.4,1185.2,4.00959]
[1610179450598,5.71629,1185.4,1184.6,47.7501]
[1610179451999,5.71629,1185.4,1184.0,1.02943214]
[1610179452201,5.71629,1185.4,1184.2,54.3726]
[1610179452400,1.7067,1185.4,1184.7,4.00959]
[1610179454299,4.00959,1185.3,1185.0,4.00959]
[1610179456201,4.00959,1185.3,1184.2,54.3726]
[1610179456403,4.00959,1185.1,1184.8,4.00959]
[1610179456604,5.68169,1185.1,1184.8,4.00959]
[1610179458404,4.00959,1184.9,1184.8,4.00959]
[1610179459405,1.6721,1185.1,1184.8,4.00959]
[1610179460406,1.6721,1185.1,1185.0,4.00959]
[1610179461706,4.00959,1185.2,1185.0,4.00959]
[1610179464511,1.7067,1185.4,1185.0,4.00959]
[1610179464911,8.5021,1186.0,1185.0,4.00959]
[1610179466416,8.5021,1186.0,1184.8,48.3236]
[1610179467522,2.5238,1186.0,1184.8,48.3236]
[1610179467926,1.8016,1186.0,1184.8,48.3236]
[1610179468322,1.8016,1186.0,1185.6,4.00959]
[1610179470324,4.00959,1185.9,1185.6,4.00959]
[1610179472524,4.00959,1185.9,1185.8,4.00959]
[1610179472925,1.8016,1186.0,1185.8,4.00959]
[1610179473125,6.5272,1186.9,1185.8,4.00959]
[1610179474425,4.00959,1186.3,1186.2,4.00959]
[1610179474627,5.91279,1186.3,1186.2,4.00959]
[1610179475128,1.9032,1186.3,1186.2,4.00959]
[1610179479230,2.1117,1186.7,1186.2,4.00959]
[1610179480530,4.00959,1186.6,1186.5,4.00959]
[1610179483734,4.00959,1186.6,1186.1,49.1645]
[1610179484434,4.00959,1186.2,1186.1,53.17409]
[1610179485235,2.2945,1186.4,1186.1,53.17409]
[1610179486437,2.2945,1186.4,1186.3,4.00959]
[1610179488840,2.2945,1186.4,1185.5,58.7787]
[1610179490241,4.00959,1186.5,1185.5,58.7787]
[1610179490641,4.00959,1186.3,1185.5,58.7787]
[1610179490840,6.49079,1186.3,1185.5,58.7787]
[1610179492640,2.4812,1186.3,1185.5,58.7787]
[1610179494646,2.4812,1186.3,1185.9,4.00959]
[1610179495949,54.2123,1186.6,1185.5,58.7787]
[1610179496551,4.00959,1185.9,1185.7,4.00959]
[1610179496948,2.2199,1186.0,1185.7,4.00959]
[1610179498650,4.00959,1185.8,1185.7,4.00959]
[1610179498850,4.00959,1185.8,1185.1,1.9217]
[1610179499051,4.00959,1185.8,1184.8,3.47157787]
[1610179499451,4.00959,1185.8,1184.8,2.4428]
[1610179499650,4.00959,1185.8,1184.7,50.98002614]
[1610179500452,4.00959,1185.8,1184.8,1.28606967]
[1610179500655,4.00959,1185.8,1185.6,4.00959]
[1610179506257,2.2199,1186.0,1185.6,4.00959]
[1610179506458,50.7081,1186.5,1185.6,4.00959]
[1610179506661,4.00959,1186.1,1186.0,4.00959]
[1610179506860,6.06789,1186.1,1186.0,4.00959]
[1610179507260,6.06789,1186.1,1184.7,1.02889276]
[1610179507459,6.06789,1186.1,1185.0,69.1719]
[1610179508562,4.00959,1185.7,1185.6,4.00959]
[1610179508760,1.6684,1185.7,1185.6,4.00959]
[1610179510265,1.6684,1185.7,1185.6,64.97919]
[1610179514164,2.0583,1186.1,1185.6,64.97919]
[1610179514566,4.00959,1186.4,1186.0,4.00959]
[1610179515464,8.6741,1186.7,1186.0,4.00959]
[1610179515866,8.6741,1186.7,1186.0,64.49059]
[1610179516566,4.00959,1186.6,1186.5,4.00959]
[1610179516768,4.00959,1186.6,1186.0,60.481]
[1610179517372,4.00959,1186.6,1185.0,1.02869118]
[1610179517570,4.00959,1186.6,1185.2,63.6328]
[1610179518570,8.6741,1186.7,1185.9,4.00959]
[1610179518770,6.1291,1186.6,1185.2,63.6328]
[1610179519171,6.1291,1186.6,1185.3,1.28610637]
[1610179520473,7.5976,1186.4,1185.3,1.28610637]
[1610179520672,4.00959,1186.2,1186.1,4.00959]
[1610179524476,1.6334,1186.4,1186.1,4.00959]
[1610179524676,5.64299,1186.4,1186.1,4.00959]
[1610179525277,5.64299,1186.4,1185.0,1.0286736]
[1610179525278,5.64299,1186.4,1185.5,68.7368]
[1610179526587,1.6334,1186.4,1185.6,4.00959]
[1610179526985,55.2707,1186.5,1185.6,4.00959]
[1610179528585,4.00959,1185.8,1185.6,4.00959]
[1610179528785,2.4346,1185.8,1185.6,4.00959]
[1610179533991,2.0638,1185.8,1185.6,4.00959]
[1610179534395,2.0638,1185.8,1185.6,34.00959]
[1610179535396,2.0638,1185.8,1185.7,1.28559877]
[1610179536493,2.0638,1185.8,1185.7,93.05119877]
[1610179536694,2.0638,1185.8,1185.7,31.28559877]
[1610179536894,2.1117,1186.7,1185.8,51.2556]
[1610179537195,61.5479,1187.7,1185.9,30.0]
[1610179537394,52.97907413,1188.1,1185.9,30.0]
[1610179537596,53.00415567,1188.2,1186.5,48.2086]
[1610179537794,53.00415567,1188.2,1185.9,30.0]
[1610179537996,54.75895567,1188.2,1186.4,66.953]
[1610179538196,54.75895567,1188.2,1186.0,1.28509645]
[1610179538397,54.75895567,1188.2,1186.5,50.1663]
[1610179538600,4.00959,1187.3,1187.2,4.00959]
[1610179538797,4.00959,1187.3,1186.5,50.1663]
[1610179540102,5.85719,1187.3,1186.5,50.1663]
[1610179540602,4.00959,1187.0,1186.9,4.00959]
[1610179540801,6.23779,1187.0,1186.9,4.00959]
[1610179541001,2.2282,1187.0,1186.9,11.39469]
[1610179545807,1.8476,1187.3,1186.9,11.39469]
[1610179546106,4.00959,1187.5,1186.9,11.39469]
[1610179546708,4.00959,1187.5,1187.4,4.00959]
[1610179549209,1.7548,1188.2,1187.4,4.00959]
[1610179549210,1.7548,1188.2,1187.5,60.6181]
[1610179549408,53.0831907,1188.6,1187.5,60.6181]
[1610179549608,53.10312302,1188.7,1187.5,60.6181]
[1610179550008,115.82424555,1188.9,1187.5,60.6181]
[1610179550707,4.00959,1188.3,1188.2,4.00959]
[1610179550908,4.00959,1188.3,1188.1,53.7216]
[1610179551409,117.02279868,1189.2,1188.1,53.7216]
[1610179551609,63.8472,1189.2,1188.1,53.7216]
[1610179552715,53.19646193,1189.3,1188.5,4.00959]
[1610179553117,1.659,1189.3,1188.6,50.9304]
[1610179554317,6.4542,1189.6,1188.6,50.9304]
[1610179554718,57.17881025,1189.7,1189.5,4.00959]
[1610179555119,4.00959,1189.7,1189.5,4.00959]
[1610179557428,53.28197236,1190.5,1189.5,4.00959]
[1610179557828,104.33450822,1190.7,1189.5,4.00959]
[1610179558430,50.9945,1190.7,1189.5,4.00959]
[1610179558828,4.00959,1190.1,1189.9,4.00959]
[1610179559027,6.11339,1190.1,1189.9,4.00959]
[1610179559229,2.1038,1190.1,1189.9,62.12379]
[1610179563233,2.1038,1190.1,1189.9,58.1142]
[1610179564234,2.4169,1190.1,1189.9,58.1142]
[1610179564434,2.4169,1190.1,1188.5,1.02572893]
[1610179564635,2.4169,1190.1,1188.6,70.3731]
[1610179564834,4.00959,1189.5,1189.2,4.00959]
[1610179565236,5.88399,1189.5,1189.2,4.00959]
[1610179565837,1.8744,1189.5,1189.2,4.00959]
[1610179566039,1.8744,1189.5,1189.3,53.1646]
[1610179566238,1.8744,1189.5,1189.2,4.00959]
[1610179566639,1.8744,1189.5,1189.2,55.51199]
[1610179566839,1.8744,1189.5,1189.4,4.00959]
[1610179567642,1.8744,1189.5,1189.4,53.65209]
[1610179570247,2.4169,1190.1,1189.4,53.65209]
[1610179570647,4.00959,1190.4,1189.4,53.65209]
[1610179570847,56.1101,1190.9,1189.7,4.00959]
[1610179571047,56.1101,1190.9,1189.8,7.8747]
[1610179571849,109.56443508,1190.9,1189.8,7.8747]
[1610179572449,8.53993115,1190.8,1189.8,7.8747]
[1610179572651,10.18413115,1190.8,1189.8,7.8747]
[1610179572849,4.00959,1190.0,1189.8,7.8747]
[1610179573049,6.20829,1190.0,1189.8,7.8747]
[1610179573249,6.20829,1190.0,1189.3,68.556]
[1610179574751,6.20829,1190.0,1189.8,4.00959]
[1610179576357,6.20829,1190.0,1189.7,66.3911]
[1610179576755,4.00959,1189.8,1189.7,66.3911]
[1610179579856,2.1987,1190.0,1189.7,66.3911]
[1610179580656,1.6442,1190.8,1189.6,4.00959]
[1610179580856,1.6442,1190.8,1190.4,4.00959]
[1610179581058,53.32969416,1191.0,1190.5,9.7099]
[1610179581260,53.3588548,1191.1,1190.5,0.411]
[1610179581661,53.38203193,1191.2,1190.5,0.411]
[1610179582158,53.38203193,1191.2,1190.4,4.00959]
[1610179582560,55.18493193,1191.2,1190.4,4.00959]
[1610179582759,8.53935101,1191.1,1190.4,4.00959]
[1610179582960,12.54894101,1191.1,1190.9,4.00959]
[1610179583159,12.54894101,1191.1,1190.8,47.7072]
[1610179583160,12.54894101,1191.1,1190.8,38.81999]
[1610179584262,8.5390102,1191.0,1190.8,38.81999]
[1610179584860,4.00959,1190.9,1190.8,38.81999]
[1610179585062,5.80939,1190.9,1190.8,38.81999]
[1610179586867,5.80939,1190.9,1190.8,42.82958]
[1610179587368,1.7998,1190.9,1190.8,42.82958]
[1610179588170,15.7998,1190.9,1190.8,42.82958]
[1610179590273,15.7998,1190.9,1190.8,38.81999]
[1610179590674,15.7998,1190.9,1190.5,62.7546]
[1610179590874,4.00959,1190.6,1190.5,62.7546]
[1610179591075,6.12609,1190.6,1190.5,62.7546]
[1610179592375,2.1165,1190.6,1190.5,62.7546]
[1610179592874,2.1165,1190.6,1190.5,66.76419]
[1610179596179,15.7998,1190.9,1190.5,66.76419]
[1610179596379,15.7998,1190.9,1190.5,4.00959]
[1610179596980,15.7998,1190.9,1190.8,4.00959]
[1610179606294,15.7998,1190.9,1190.8,64.02229]
[1610179609201,15.7998,1190.9,1190.8,4.00959]
[1610179612505,15.7998,1190.9,1190.8,58.01629]
[1610179614104,15.7998,1190.9,1190.8,54.0067]
[1610179615008,15.7998,1190.9,1190.8,58.01629]
[1610179617009,15.7998,1190.9,1190.8,4.00959]
[1610179621815,15.7998,1190.9,1190.8,5.28943794]
[1610179623415,15.7998,1190.9,1190.8,4.00959]
[1610179626017,15.7998,1190.9,1190.8,5.28936061]
[1610179626217,15.7998,1190.9,1190.8,35.28936061]
[1610179628020,15.7998,1190.9,1190.8,36.56880772]
[1610179628418,15.7998,1190.9,1190.8,35.28936061]
[1610179628819,15.7998,1190.9,1190.8,36.56879884]
[1610179629019,15.7998,1190.9,1190.8,35.28936061]
[1610179630622,15.7998,1190.9,1190.8,36.82465072]
[1610179631221,15.7998,1190.9,1190.8,35.28936061]
[1610179631421,14.0,1190.9,1190.8,35.28936061]
[1610179631621,14.0,1190.9,1190.8,37.3362324]
[1610179632028,4.3429,1190.9,1190.8,37.3362324]
[1610179632821,4.3429,1190.9,1190.8,35.28936061]
[1610179634024,2.5805,1192.9,1190.8,35.28936061]
[1610179634224,2.5805,1192.9,1192.1,52.5791]
[1610179635026,2.5805,1192.9,1192.8,4.00959]
[1610179636027,2.5805,1192.9,1192.7,62.8868]
[1610179637027,2.1682,1192.9,1192.8,4.00959]
[1610179639429,6.2754,1194.6,1192.9,63.1064]
[1610179640530,6.2754,1194.6,1192.8,4.00959]
[1610179640731,2.1589,1194.6,1193.7,66.8401]
[1610179641131,2.1589,1194.6,1194.5,4.00959]
[1610179642532,2.1589,1194.6,1193.0,0.7665552]
[1610179642732,2.1589,1194.6,1193.4,55.7392]
[1610179643132,4.00959,1194.2,1194.1,4.00959]
[1610179643634,4.00959,1194.2,1194.1,11.07909]
[1610179643635,5.91679,1194.2,1194.1,11.07909]